bitfinex-derivatives/quotes_BTCF0:USTF0_20241128
["timestamp","ask_amount","ask_price","bid_price","bid_amount"]
[1732753995024,0.052057,95949.0,95948.0,0.052055]
[1732753995228,0.052057,95947.0,95946.0,0.3608]
[1732753995932,0.052053,95956.0,95955.0,0.052052]
[1732753996627,0.052049,95963.0,95962.0,0.052048]
[1732753996827,0.052049,95963.0,95962.0,0.412848]
[1732753997428,0.06039286,95963.0,95962.0,0.412848]
[1732753997629,0.06039286,95963.0,95954.0,0.3608]
[1732753997833,0.00834386,95962.0,95954.0,0.3608]
[1732753998139,0.052053,95955.0,95954.0,0.412853]
[1732753998329,0.06039686,95955.0,95954.0,0.412853]
[1732753998533,0.052053,95955.0,95954.0,0.412853]
[1732753999242,0.053053,95955.0,95954.0,0.412853]
[1732754000536,0.057053,95955.0,95954.0,0.412853]
[1732754000931,0.059053,95955.0,95954.0,0.412853]
[1732754001140,0.007,95955.0,95954.0,0.412853]
[1732754002239,0.004,95955.0,95954.0,0.412853]
[1732754002945,0.056053,95955.0,95954.0,0.412853]
[1732754003130,0.052053,95955.0,95954.0,0.412853]
[1732754004743,0.002,95955.0,95954.0,0.412853]
[1732754004935,0.003,95955.0,95954.0,0.412853]
[1732754005339,0.003,95955.0,95954.0,0.59868578]
[1732754005540,0.003,95955.0,95954.0,0.412853]
[1732754006037,0.003,95955.0,95954.0,0.725493]
[1732754006343,0.07075985,95974.0,95973.0,0.052043]
[1732754006344,0.01871785,95974.0,95973.0,0.052043]
[1732754006541,0.02707725,95974.0,95973.0,0.412843]
[1732754006758,0.15677125,95990.0,95973.0,0.412843]
[1732754006759,0.09337374,95988.0,95985.0,0.052036]
[1732754007039,0.0015632,95990.0,95988.0,0.052035]
[1732754007040,0.0535972,95990.0,95988.0,0.052035]
[1732754007241,0.14698701,95990.0,95989.0,0.052034]
[1732754007437,0.0535972,95990.0,95989.0,0.052034]
[1732754009543,0.0015632,95990.0,95989.0,0.052034]
[1732754009936,0.09996271,95990.0,95989.0,0.052034]
[1732754010536,0.0015632,95990.0,95989.0,0.052034]
[1732754010738,0.0075632,95990.0,95989.0,0.052034]
[1732754010943,0.0595972,95990.0,95989.0,0.052034]
[1732754011146,0.0075632,95990.0,95989.0,0.052034]
[1732754011349,0.0055632,95990.0,95989.0,0.052034]
[1732754012450,0.0045632,95990.0,95989.0,0.052034]
[1732754013047,0.052034,95989.0,95987.0,0.3608]
[1732754013344,0.052034,95989.0,95987.0,0.412835]
[1732754013345,0.14539721,95989.0,95987.0,0.412835]
[1732754013937,0.052034,95989.0,95987.0,0.412835]
[1732754014450,0.053034,95989.0,95987.0,0.412835]
[1732754014951,0.054034,95989.0,95987.0,0.412835]
[1732754015448,0.055034,95989.0,95987.0,0.412835]
[1732754016353,0.056034,95989.0,95988.0,0.052035]
[1732754017351,0.056034,95989.0,95987.0,0.3608]
[1732754017352,0.004,95989.0,95987.0,0.3608]
[1732754017556,0.052035,95988.0,95987.0,0.3608]
[1732754018644,0.052035,95988.0,95987.0,0.412835]
[1732754019945,0.054035,95988.0,95987.0,0.412835]
[1732754020550,0.056035,95988.0,95987.0,0.412835]
[1732754023957,0.004,95988.0,95987.0,0.412835]
[1732754025651,0.056035,95988.0,95987.0,0.3608]
[1732754025850,0.056035,95988.0,95974.0,0.279009]
[1732754025851,0.05204,95979.0,95974.0,0.18639632]
[1732754026161,0.113235,95987.0,95986.0,0.052036]
[1732754026657,0.052038,95982.0,95981.0,0.3608]
[1732754027754,0.052038,95982.0,95981.0,0.412838]
[1732754030574,0.056038,95982.0,95981.0,0.412838]
[1732754031168,0.059038,95982.0,95981.0,0.412838]
[1732754031672,0.055038,95982.0,95981.0,0.412838]
[1732754032068,0.060038,95982.0,95981.0,0.412838]
[1732754032469,0.18465165,95982.0,95981.0,0.052038]
[1732754032674,0.18165165,95982.0,95981.0,0.052038]
[1732754032876,0.18465165,95982.0,95981.0,0.052038]
[1732754033080,0.060038,95982.0,95981.0,0.23843432]
[1732754033382,0.008,95982.0,95981.0,0.23843432]
[1732754033573,0.008,95982.0,95981.0,0.052038]
[1732754034177,0.006,95982.0,95981.0,0.052038]
[1732754034881,0.003,95982.0,95981.0,0.052038]
[1732754035784,0.20724305,95988.0,95987.0,0.052035]
[1732754035972,0.052035,95988.0,95987.0,0.052035]
[1732754036174,0.20806284,95988.0,95987.0,0.2387752]
[1732754036976,0.0015632,95990.0,95989.0,0.052034]
[1732754037175,0.00010641,95992.0,95991.0,0.052033]
[1732754039586,0.00010641,95992.0,95991.0,0.06513656]
[1732754040087,0.00310641,95992.0,95991.0,0.06513656]
[1732754040683,0.00710641,95992.0,95991.0,0.08328879]
[1732754041087,0.00710641,95992.0,95991.0,0.08331449]
[1732754042384,0.00310641,95992.0,95991.0,0.08531449]
[1732754042585,0.00010641,95992.0,95991.0,0.08631449]
[1732754042785,0.09367268,95992.0,95991.0,0.08631449]
[1732754043093,0.00010641,95992.0,95991.0,0.0258889]
[1732754043387,0.41293841,95992.0,95991.0,0.01512926]
[1732754043685,0.41293841,95992.0,95991.0,0.01612926]
[1732754044278,0.44603841,95992.0,95991.0,0.01512926]
[1732754044678,0.44603841,95992.0,95991.0,0.01312926]
[1732754044891,0.44603841,95992.0,95991.0,0.01512926]
[1732754045283,0.49664467,95992.0,95991.0,0.01512926]
[1732754045481,0.50164467,95992.0,95991.0,0.01312926]
[1732754046384,0.51903591,95992.0,95991.0,0.01312926]
[1732754046585,0.51903591,95992.0,95985.0,0.052036]
[1732754046586,0.052036,95986.0,95985.0,0.052036]
[1732754046781,0.15594661,95987.0,95985.0,0.02332693]
[1732754046992,0.052038,95982.0,95980.0,0.052039]
[1732754047294,0.052038,95982.0,95981.0,0.04503422]
[1732754047589,0.052038,95982.0,95981.0,0.03527376]
[1732754048386,0.052038,95982.0,95981.0,0.04503488]
[1732754049189,0.052038,95982.0,95981.0,0.09707288]
[1732754049596,0.055038,95982.0,95981.0,0.08731176]
[1732754049794,0.057038,95982.0,95981.0,0.08731176]
[1732754050498,0.055038,95982.0,95981.0,0.27392734]
[1732754050699,0.057038,95982.0,95981.0,0.27392734]
[1732754051296,0.054038,95982.0,95981.0,0.27392734]
[1732754051496,0.002,95982.0,95981.0,0.08731176]
[1732754052194,0.004,95982.0,95981.0,0.08731176]
[1732754052600,0.002,95982.0,95981.0,0.04503478]
[1732754052995,0.054038,95982.0,95981.0,0.04503478]
[1732754053296,0.054038,95982.0,95981.0,0.20996059]
[1732754053496,0.054038,95982.0,95981.0,0.02332785]
[1732754053700,0.054038,95982.0,95981.0,0.04504208]
[1732754054297,0.054038,95982.0,95981.0,0.04505392]
[1732754054600,0.17979316,95982.0,95981.0,0.22197997]
[1732754055194,0.17779316,95982.0,95981.0,0.22197997]
[1732754055506,0.17779316,95982.0,95981.0,0.0352929]
[1732754055507,0.056038,95982.0,95981.0,0.0352929]
[1732754055893,0.056038,95982.0,95981.0,0.22203573]
[1732754056089,0.056038,95982.0,95981.0,0.22202561]
[1732754056290,0.052038,95982.0,95981.0,0.2003069]
[1732754056495,0.057038,95982.0,95981.0,0.2003069]
[1732754056690,0.057038,95982.0,95981.0,0.22205186]
[1732754057104,0.07243927,95982.0,95981.0,0.22205186]
[1732754057300,0.07543927,95982.0,95981.0,0.2003069]
[1732754057602,0.07543927,95982.0,95981.0,0.02333621]
[1732754057807,0.12605297,95982.0,95981.0,0.00976202]
[1732754058010,0.12605297,95982.0,95965.0,0.18673271]
[1732754058011,0.052043,95972.0,95965.0,0.18673271]
[1732754058310,0.052043,95972.0,95971.0,0.0113255]
[1732754058503,0.052044,95971.0,95959.0,0.18673271]
[1732754058696,0.052044,95971.0,95944.0,0.40617399]
[1732754058697,0.05205,95960.0,95958.0,0.18673271]
[1732754058897,0.05205,95960.0,95959.0,0.01309576]
[1732754059204,0.05205,95960.0,95959.0,0.02285938]
[1732754060398,0.052054,95953.0,95952.0,0.052054]
[1732754060604,0.052054,95953.0,95952.0,0.07505362]
[1732754060899,0.052054,95953.0,95952.0,0.06181794]
[1732754061100,0.052054,95953.0,95952.0,0.07508234]
[1732754061300,0.052054,95953.0,95952.0,0.06181794]
[1732754061503,0.052054,95953.0,95952.0,0.07508161]
[1732754061701,0.052054,95953.0,95952.0,0.07608161]
[1732754062098,0.052054,95953.0,95952.0,0.07808161]
[1732754062303,0.052054,95953.0,95952.0,0.06831767]
[1732754064507,0.09353205,95962.0,95952.0,0.20299638]
[1732754064707,0.052052,95957.0,95956.0,0.052052]
[1732754065014,0.052052,95957.0,95956.0,0.06531567]
[1732754065807,0.052052,95957.0,95956.0,0.01326367]
[1732754067103,0.052052,95957.0,95956.0,0.06531567]
[1732754067305,0.05205,95960.0,95959.0,0.05205]
[1732754067512,0.09353205,95964.0,95963.0,0.052048]
[1732754067706,0.052043,95974.0,95959.0,0.3608]
[1732754068016,0.052043,95974.0,95972.0,0.052043]
[1732754068316,0.052043,95974.0,95973.0,0.052043]
[1732754068514,0.052043,95974.0,95973.0,0.06916773]
[1732754069108,0.052043,95974.0,95973.0,0.06591349]
[1732754069909,0.052043,95974.0,95973.0,0.052043]
[1732754070109,0.052043,95974.0,95973.0,0.06590119]
[1732754070527,0.055043,95974.0,95973.0,0.06590119]
[1732754071112,0.055043,95974.0,95973.0,0.06593341]
[1732754071316,0.007,95974.0,95973.0,0.06593341]
[1732754071619,0.007,95974.0,95973.0,0.0881607]
[1732754072808,0.003,95974.0,95973.0,0.0881607]
[1732754073013,0.007,95974.0,95973.0,0.0881607]
[1732754073210,0.059042,95974.0,95973.0,0.0881607]
[1732754073811,0.059042,95974.0,95973.0,0.06593341]
[1732754074518,0.058042,95974.0,95973.0,0.06593341]
[1732754074822,0.006,95974.0,95973.0,0.08794064]
[1732754075027,0.003,95974.0,95973.0,0.08794064]
[1732754075225,0.007,95974.0,95973.0,0.08794064]
[1732754075723,0.007,95974.0,95973.0,0.08780748]
[1732754075915,0.004,95974.0,95973.0,0.08780748]
[1732754076111,0.007,95974.0,95973.0,0.08780748]
[1732754076622,0.007,95974.0,95973.0,0.27454019]
[1732754076920,0.006,95974.0,95973.0,0.27454019]
[1732754077118,0.006,95974.0,95973.0,0.08780748]
[1732754077318,0.006,95974.0,95973.0,0.11508643]
[1732754077518,0.002,95974.0,95973.0,0.10532469]
[1732754077720,0.005,95974.0,95973.0,0.10532469]
[1732754077917,0.005,95974.0,95973.0,0.10630427]
[1732754078119,0.005,95974.0,95973.0,0.11606581]
[1732754078514,0.005,95974.0,95973.0,0.10630427]
[1732754078721,0.002,95974.0,95973.0,0.10630427]
[1732754079120,0.002,95974.0,95973.0,0.35514306]
[1732754079314,0.09353205,95984.0,95973.0,0.05426127]
[1732754079520,0.001,95974.0,95973.0,0.06956021]
[1732754080117,0.09353205,95984.0,95973.0,0.06956021]
[1732754080318,0.14556805,95986.0,95985.0,0.052036]
[1732754080717,0.14544205,95986.0,95985.0,0.052036]
[1732754080917,0.052036,95986.0,95985.0,0.052036]
[1732754081219,0.09340504,95989.0,95985.0,0.052036]
[1732754081420,0.36144,95993.0,95985.0,0.052036]
[1732754081421,0.3608,95993.0,95985.0,0.052036]
[1732754081619,0.3608,95993.0,95991.0,0.052033]
[1732754081826,0.1247094,96000.0,95991.0,0.412833]
[1732754081827,0.09340504,96000.0,95991.0,0.412833]
[1732754082020,0.14543304,96001.0,95991.0,0.44931841]
[1732754082226,0.052028,96000.0,95991.0,0.45907913]
[1732754082423,0.09340504,96001.0,95991.0,0.45907913]
[1732754082623,0.052031,95995.0,95991.0,0.45905812]
[1732754082828,0.00666974,95992.0,95991.0,0.43761849]
[1732754083126,0.00666974,95992.0,95991.0,0.43729268]
[1732754083520,0.00666974,95992.0,95991.0,0.42753196]
[1732754083521,0.01266974,95992.0,95991.0,0.42753196]
[1732754084416,0.00466974,95992.0,95991.0,0.42653196]
[1732754084621,0.00866974,95992.0,95991.0,0.42653196]
[1732754084823,0.00710641,95992.0,95991.0,0.42653196]
[1732754087322,0.00410641,95992.0,95991.0,0.42653196]
[1732754087926,0.00010641,95992.0,95991.0,0.42653196]
[1732754089333,0.00110641,95992.0,95991.0,0.42653196]
[1732754089525,0.00210641,95992.0,95991.0,0.42653196]
[1732754090127,0.00210641,95992.0,95991.0,0.42667703]
[1732754090326,0.00110641,95992.0,95991.0,0.42667703]
[1732754090926,0.00110641,95992.0,95991.0,0.44874134]
[1732754091329,0.00010641,95992.0,95991.0,0.44874134]
[1732754092828,0.00110641,95992.0,95991.0,0.44874134]
[1732754093525,0.00010641,95992.0,95991.0,0.44874134]
[1732754095029,0.09340526,95992.0,95991.0,0.44874134]
[1732754095229,0.00010641,95992.0,95991.0,0.44874134]
[1732754095622,0.03275058,96003.0,95993.0,0.052032]
[1732754095926,0.00156254,96022.0,96002.0,0.54720534]
[1732754096232,0.1247094,96031.0,96030.0,0.052012]
[1732754096432,0.12432721,96031.0,96030.0,0.06585603]
[1732754096734,0.0618,96040.0,96030.0,0.0139222]
[1732754096735,0.21773644,96040.0,96030.0,0.0139222]
[1732754096925,0.12432393,96035.0,96033.0,0.05201]
[1732754097129,0.0618,96040.0,96034.0,0.01384403]
[1732754097130,0.12432393,96039.0,96034.0,0.01384403]
[1732754097325,0.12432393,96044.0,96035.0,0.01384403]
[1732754097632,0.01704911,96050.0,96041.0,0.3608]
[1732754097838,0.05212156,96050.0,96049.0,0.052002]
[1732754098129,0.00011956,96050.0,96049.0,0.052002]
[1732754098329,0.37671856,96054.0,96053.0,0.051999]
[1732754098734,0.051999,96054.0,96053.0,0.051999]
[1732754100130,0.052001,96050.0,96049.0,0.413801]
[1732754100334,0.052001,96050.0,96049.0,0.412801]
[1732754102142,0.057001,96050.0,96049.0,0.413801]
[1732754102639,0.065001,96050.0,96049.0,0.414801]
[1732754103641,0.063001,96050.0,96049.0,0.002]
[1732754104844,0.011,96050.0,96049.0,0.414802]
[1732754105742,0.011,96050.0,96049.0,0.727122]
[1732754106237,0.011,96050.0,96049.0,0.74059263]
[1732754107047,0.011,96050.0,96049.0,0.76230811]
[1732754110347,0.011,96050.0,96049.0,0.76342354]
[1732754110648,0.011,96050.0,96049.0,0.62842354]
[1732754112147,0.011,96050.0,96049.0,0.45110354]
[1732754112448,0.011,96050.0,96049.0,0.42876413]
[1732754112640,0.063001,96050.0,96049.0,0.42876413]
[1732754113036,0.011,96050.0,96049.0,0.414802]
[1732754113541,0.011,96050.0,96049.0,0.42819897]
[1732754114143,0.011,96050.0,96049.0,0.45027083]
[1732754114341,0.063001,96050.0,96049.0,0.45027083]
[1732754114748,0.063001,96050.0,96049.0,0.08947083]
[1732754114946,0.063001,96050.0,96049.0,0.06739897]
[1732754115448,0.011,96050.0,96049.0,0.45022397]
[1732754116043,0.011,96050.0,96049.0,0.45150679]
[1732754116648,0.011,96050.0,96049.0,0.62882679]
[1732754116946,0.01719015,96062.0,96049.0,0.62882679]
[1732754116947,0.01719015,96062.0,96049.0,0.88914479]
[1732754117149,0.00013491,96067.0,96049.0,0.88914479]
[1732754117150,0.00013491,96067.0,96066.0,0.051992]
[1732754117349,0.00013491,96067.0,96066.0,0.27249679]
[1732754117851,0.0319,96087.0,96066.0,0.22061776]
[1732754118149,0.051982,96085.0,96084.0,0.051982]
[1732754118451,0.051982,96085.0,96084.0,0.06609923]
[1732754119852,0.051982,96085.0,96084.0,0.06709923]
[1732754119853,0.053982,96085.0,96084.0,0.06709923]
[1732754120442,0.053982,96085.0,96084.0,0.01511723]
[1732754121655,0.366222,96085.0,96084.0,0.01611723]
[1732754122242,0.49054593,96085.0,96084.0,0.01611723]
[1732754122646,0.366222,96085.0,96084.0,0.01611723]
[1732754124342,0.366222,96085.0,96084.0,0.03865897]
[1732754125153,0.52215844,96085.0,96084.0,0.03865897]
[1732754125358,0.41678099,96085.0,96084.0,0.03865897]
[1732754125751,0.366222,96085.0,96084.0,0.03865897]
[1732754125947,0.053982,96085.0,96084.0,0.04190944]
[1732754126144,0.20936529,96085.0,96084.0,0.002]
[1732754126345,0.053982,96085.0,96084.0,0.04213356]
[1732754126758,0.20936529,96085.0,96084.0,0.04213356]
[1732754127254,0.20944386,96085.0,96084.0,0.04213356]
[1732754127450,0.17835157,96085.0,96084.0,0.04213356]
[1732754127850,0.053982,96085.0,96084.0,0.03888308]
[1732754128050,0.17835157,96085.0,96084.0,0.03888308]
[1732754128251,0.053982,96085.0,96084.0,0.03888308]
[1732754128450,0.053982,96085.0,96084.0,0.09086608]
[1732754128853,0.02147905,96085.0,96084.0,0.10386725]
[1732754129053,0.002,96085.0,96084.0,0.10286725]
[1732754129263,0.002,96085.0,96084.0,0.11897277]
[1732754129462,0.053982,96085.0,96084.0,0.0856226]
[1732754129758,0.053982,96085.0,96084.0,0.09342745]
[1732754130059,0.053982,96085.0,96084.0,0.08917717]
[1732754130259,0.002,96085.0,96084.0,0.08917717]
[1732754130856,0.051981,96088.0,96087.0,0.051981]
[1732754131056,0.051981,96088.0,96087.0,0.08917517]
[1732754131361,0.01694691,96089.0,96088.0,0.051981]
[1732754131560,0.051979,96092.0,96088.0,0.03719417]
[1732754131765,0.051979,96092.0,96087.0,0.3608]
[1732754131766,0.051979,96092.0,96091.0,0.051979]
[1732754132063,0.051979,96092.0,96091.0,0.08917317]
[1732754132563,0.00011386,96099.0,96091.0,0.08917317]
[1732754132564,0.00011386,96099.0,96098.0,0.051975]
[1732754132860,0.00011386,96099.0,96098.0,0.44996917]
[1732754133265,0.00011386,96099.0,96098.0,0.45971797]
[1732754133650,0.00011386,96099.0,96098.0,0.44996917]
[1732754134058,0.00211386,96099.0,96098.0,0.45096917]
[1732754134363,0.00211386,96099.0,96098.0,0.4607174]
[1732754134562,0.00211386,96099.0,96098.0,0.45096917]
[1732754134760,0.00211386,96099.0,96098.0,0.46071733]
[1732754135059,0.10156141,96100.0,96099.0,0.051975]
[1732754135251,0.051962,96122.0,96121.0,0.051962]
[1732754135453,0.051962,96127.0,96126.0,0.051959]
[1732754135756,0.051962,96127.0,96126.0,0.08915317]
[1732754136156,0.051962,96127.0,96126.0,0.06633831]
[1732754136964,0.051962,96127.0,96126.0,0.07533831]
[1732754137163,0.083058,96131.0,96130.0,0.051958]
[1732754137463,0.083058,96131.0,96130.0,0.06578884]
[1732754138367,0.083058,96131.0,96130.0,0.051958]
[1732754138557,0.083058,96131.0,96130.0,0.001]
[1732754139354,0.083058,96131.0,96130.0,0.052958]
[1732754139562,0.083058,96131.0,96130.0,0.061958]
[1732754140469,0.083058,96131.0,96130.0,0.052958]
[1732754141662,0.083058,96131.0,96130.0,0.001]
[1732754142263,0.395138,96131.0,96130.0,0.001]
[1732754142457,0.395138,96131.0,96126.0,7.386e-05]
[1732754142664,0.395138,96131.0,96111.0,0.051968]
[1732754142665,0.05196,96126.0,96111.0,0.051968]
[1732754142868,0.36261545,96130.0,96112.0,0.051966]
[1732754142869,0.051968,96113.0,96112.0,0.051966]
[1732754143558,0.051968,96113.0,96112.0,0.08770194]
[1732754143766,0.051968,96113.0,96112.0,0.05205112]
[1732754143964,0.051968,96113.0,96112.0,0.06576298]
[1732754144160,0.051968,96113.0,96112.0,0.08770098]
[1732754145158,0.17579479,96113.0,96112.0,0.06576298]
[1732754145866,0.051968,96113.0,96112.0,0.06576298]
[1732754146073,0.053968,96113.0,96112.0,0.06576298]
[1732754146258,0.07054886,96113.0,96112.0,0.06576298]
[1732754146459,0.051968,96113.0,96112.0,0.06576298]
[1732754146772,0.053968,96113.0,96112.0,0.06576298]
[1732754148563,0.053968,96113.0,96112.0,0.01379698]
[1732754148759,0.10250847,96113.0,96112.0,8.512e-05]
[1732754148972,0.10350847,96113.0,96112.0,8.512e-05]
[1732754149271,0.2906322,96113.0,96112.0,8.512e-05]
[1732754149462,0.10350847,96113.0,96112.0,8.512e-05]
[1732754150774,0.413768,96113.0,96112.0,8.512e-05]
[1732754153880,0.413768,96113.0,96091.0,0.051979]
[1732754153881,0.051979,96092.0,96091.0,0.051979]
[1732754154065,0.051979,96092.0,96091.0,0.06553836]
[1732754154269,0.051979,96092.0,96091.0,0.051979]
[1732754154779,0.051976,96099.0,96098.0,0.051975]
[1732754155269,0.3608,96104.0,96093.0,0.051977]
[1732754155270,0.051978,96094.0,96093.0,0.051977]
[1732754156569,0.051978,96094.0,96093.0,0.055977]
[1732754157075,0.051978,96094.0,96093.0,0.06963006]
[1732754157373,0.051978,96094.0,96093.0,0.06963285]
[1732754157872,0.051978,96094.0,96093.0,0.07263285]
[1732754158670,0.051978,96094.0,96093.0,0.09452107]
[1732754158970,0.06922282,96094.0,96093.0,0.09452107]
[1732754160176,0.051978,96094.0,96093.0,0.09452107]
[1732754160476,0.17599095,96094.0,96093.0,0.09452107]
[1732754161268,0.051978,96094.0,96093.0,0.09452107]
[1732754162369,0.01738595,96095.0,96094.0,0.051977]
[1732754162575,0.15501619,96102.0,96094.0,0.03554407]
[1732754162771,0.051973,96102.0,96101.0,0.051973]
[1732754162974,0.10252057,96102.0,96101.0,0.06562885]
[1732754163272,0.20744891,96102.0,96101.0,0.06562885]
[1732754163473,0.051973,96102.0,96101.0,0.06562885]
[1732754164973,0.20744891,96102.0,96101.0,0.06562885]
[1732754165371,0.15547591,96102.0,96101.0,0.06562885]
[1732754165675,0.051969,96109.0,96108.0,0.05197]
[1732754165874,0.051969,96109.0,96108.0,0.42635849]
[1732754166279,0.051969,96109.0,96108.0,0.42634113]
[1732754166668,0.412769,96109.0,96108.0,0.06554113]
[1732754166868,0.412769,96109.0,96108.0,0.01357113]
[1732754167170,0.413769,96109.0,96108.0,0.01357113]
[1732754167675,0.413769,96109.0,96108.0,0.06554113]
[1732754167875,0.052969,96109.0,96108.0,0.06554113]
[1732754168081,0.001,96109.0,96108.0,0.42634113]
[1732754168275,0.001,96109.0,96108.0,0.44805406]
[1732754168571,0.001,96109.0,96108.0,0.46504498]
[1732754169577,0.001,96109.0,96108.0,0.62903988]
[1732754169876,0.001,96109.0,96108.0,0.44333205]
[1732754170180,0.001,96109.0,96108.0,0.44319741]
[1732754170874,0.001,96109.0,96108.0,0.47451274]
[1732754173483,0.001,96109.0,96108.0,0.78667274]
[1732754173685,0.001,96109.0,96108.0,0.76510475]
[1732754174186,0.001,96109.0,96108.0,0.75535741]
[1732754175384,0.15547591,96116.0,96115.0,0.051966]
[1732754175595,0.051958,96129.0,96116.0,0.051965]
[1732754175596,0.15547591,96117.0,96116.0,0.051965]
[1732754175785,0.15547591,96117.0,96116.0,0.09690149]
[1732754175986,0.15547591,96118.0,96117.0,0.051965]
[1732754176287,0.18712373,96127.0,96118.0,0.051964]
[1732754176480,0.1846,96142.0,96120.0,0.051963]
[1732754176481,0.15551215,96121.0,96120.0,0.051963]
[1732754176681,0.15551215,96121.0,96120.0,0.412763]
[1732754176889,0.15551215,96121.0,96120.0,0.42638848]
[1732754177184,0.15551215,96121.0,96120.0,0.42638859]
[1732754177390,0.15551215,96122.0,96121.0,0.051963]
[1732754177685,0.15551215,96124.0,96123.0,0.051962]
[1732754177875,0.15551215,96124.0,96123.0,0.06558759]
[1732754178081,0.15551215,96125.0,96124.0,0.051961]
[1732754178584,0.15551215,96126.0,96125.0,0.05196]
[1732754178790,0.0505307,96126.0,96125.0,0.05196]
[1732754179089,0.051956,96133.0,96124.0,0.051961]
[1732754179389,0.27924354,96170.0,96136.0,0.051955]
[1732754179390,0.00156068,96139.0,96136.0,0.051955]
[1732754179578,0.05053011,96138.0,96136.0,0.051955]
[1732754179778,0.18654808,96137.0,96136.0,0.051955]
[1732754179980,0.05061887,96137.0,96136.0,0.051955]
[1732754180380,8.876e-05,96137.0,96136.0,0.051955]
[1732754180582,8.876e-05,96137.0,96136.0,0.06905007]
[1732754180790,8.876e-05,96137.0,96136.0,0.08246839]
[1732754182992,8.876e-05,96137.0,96136.0,0.06537332]
[1732754183490,8.876e-05,96137.0,96136.0,0.06567234]
[1732754184489,8.876e-05,96137.0,96136.0,0.42647234]
[1732754184883,8.876e-05,96137.0,96136.0,0.44829872]
[1732754185082,8.876e-05,96137.0,96136.0,0.44829898]
[1732754185283,8.876e-05,96137.0,96136.0,0.42657562]
[1732754186694,8.876e-05,96137.0,96136.0,0.42639501]
[1732754188388,8.876e-05,96137.0,96136.0,0.44808673]
[1732754188791,0.12425666,96159.0,96136.0,0.68648001]
[1732754189093,0.051943,96158.0,96157.0,0.051943]
[1732754189295,0.051943,96158.0,96152.0,0.051946]
[1732754189296,0.051948,96153.0,96152.0,0.051946]
[1732754190898,0.051948,96153.0,96152.0,0.052946]
[1732754191798,0.051948,96153.0,96152.0,0.053946]
[1732754193304,0.051948,96153.0,96152.0,0.052946]
[1732754193508,0.051948,96153.0,96152.0,0.051946]
[1732754193708,0.051948,96153.0,96145.0,0.01700096]
[1732754193709,0.12425666,96157.0,96145.0,0.01700096]
[1732754193904,0.051949,96149.0,96148.0,0.051948]
[1732754197202,0.051946,96153.0,96152.0,0.051945]
[1732754199803,0.20726683,96153.0,96152.0,0.051945]
[1732754200515,0.10246819,96153.0,96152.0,0.051945]
[1732754202716,0.051946,96153.0,96152.0,0.051945]
[1732754204810,0.051946,96153.0,96139.0,0.24787188]
[1732754204811,0.051949,96147.0,96146.0,0.18590391]
[1732754205016,0.051949,96147.0,96144.0,0.05195]
[1732754205017,0.05195,96145.0,96144.0,0.05195]
[1732754205209,0.17639816,96145.0,96144.0,0.05195]
[1732754205409,0.0313,96146.0,96144.0,0.05195]
[1732754205609,0.0313,96146.0,96145.0,0.05195]
[1732754205911,0.083249,96146.0,96145.0,0.05195]
[1732754207410,0.10047104,96146.0,96145.0,0.05195]
[1732754208413,0.05195,96144.0,96140.0,0.051952]
[1732754208614,0.12455122,96141.0,96140.0,0.051952]
[1732754208820,0.051952,96141.0,96140.0,0.051952]
[1732754209616,0.051952,96141.0,96140.0,0.052952]
[1732754211721,0.20769852,96141.0,96140.0,0.052952]
[1732754212321,0.01722204,96146.0,96144.0,0.05195]
[1732754212520,0.21788508,96165.0,96146.0,0.051949]
[1732754212521,0.12458161,96148.0,96146.0,0.051949]
[1732754212721,0.12458161,96151.0,96145.0,0.78686153]
[1732754212912,0.00156037,96166.0,96145.0,0.78686153]
[1732754212913,0.00156037,96166.0,96151.0,0.051946]
[1732754213224,0.0626,96182.0,96168.0,0.051937]
[1732754213225,0.0312,96182.0,96168.0,0.051937]
[1732754213420,0.051928,96186.0,96168.0,0.589817]
[1732754213614,0.01699414,96191.0,96168.0,0.85958059]
[1732754213823,0.01699414,96191.0,96187.0,0.051927]
[1732754213824,0.051925,96191.0,96187.0,0.051927]
[1732754214024,0.36235988,96202.0,96187.0,0.051927]
[1732754214025,0.051926,96188.0,96187.0,0.051927]
[1732754214220,0.10243151,96188.0,96187.0,0.051927]
[1732754214616,0.20743308,96188.0,96187.0,0.051927]
[1732754215132,0.20743555,96188.0,96187.0,0.060927]
[1732754215316,0.051926,96188.0,96187.0,0.060927]
[1732754216016,0.15550955,96193.0,96187.0,0.00909508]
[1732754216222,0.15550955,96195.0,96194.0,0.051923]
[1732754216428,0.15550955,96195.0,96194.0,0.412723]
[1732754216429,0.0931182,96195.0,96194.0,0.412723]
[1732754216619,0.10007934,96200.0,96199.0,0.051921]
[1732754216819,0.11680785,96200.0,96199.0,0.051921]
[1732754217017,0.10007934,96200.0,96199.0,0.051921]
[1732754217928,0.15550955,96216.0,96199.0,0.051921]
[1732754217929,0.09302441,96219.0,96199.0,0.412721]
[1732754218228,0.02077885,96223.0,96199.0,0.412721]
[1732754218229,0.051913,96214.0,96211.0,0.051914]
[1732754218524,0.051911,96217.0,96216.0,0.05191]
[1732754219125,0.3608,96225.0,96210.0,0.3608]
[1732754219425,0.0907,96229.0,96218.0,0.3608]
[1732754219629,0.0603,96229.0,96228.0,0.051905]
[1732754220527,0.051904,96230.0,96228.0,0.051905]
[1732754220925,0.051904,96230.0,96226.0,0.3608]
[1732754220926,8.368e-05,96231.0,96230.0,0.051904]
[1732754221620,8.368e-05,96231.0,96228.0,0.009]
[1732754221621,8.368e-05,96231.0,96228.0,0.018]
[1732754221928,0.051904,96230.0,96228.0,0.069905]
[1732754222519,0.051904,96230.0,96228.0,0.060905]
[1732754222717,0.051904,96230.0,96228.0,0.009]
[1732754223633,0.05191,96220.0,96218.0,0.01724151]
[1732754223826,8.368e-05,96231.0,96217.0,0.412711]
[1732754223827,0.05191,96218.0,96217.0,0.412711]
[1732754224030,0.051914,96211.0,96209.0,0.412715]
[1732754224232,0.051914,96211.0,96209.0,0.3608]
[1732754224431,0.0327,96217.0,96202.0,0.0169245]
[1732754224432,0.0307,96210.0,96202.0,0.0169245]
[1732754224629,0.0307,96210.0,96198.0,0.3608]
[1732754224630,0.0307,96210.0,96200.0,0.10414053]